[Event "*** Titled Tuesday Blitz"]
[Site "Chess.com"]
[Date "2021.03.02"]
[Round "1"]
[White "Nuvas"]
[Black "KRSilva"]
[Result "1-0"]
[WhiteElo "2539"]
[BlackElo "2222"]
[TimeControl "180+1"]
[EndTime "10:08:41 PST"]
[Termination "Nuvas won by resignation"]

1. d4 {[%clk 0:03:00.9]} 1... Nf6 {[%clk 0:02:57.3]} 2. c4 {[%clk 0:03:00.9]}
2... e6 {[%clk 0:02:56.9]} 3. Nc3 {[%clk 0:03:00.9]} 3... d5 {[%clk 0:02:56.6]}
4. cxd5 {[%clk 0:03:00.4]} 4... exd5 {[%clk 0:02:56.5]} 5. Bg5 {[%clk 0:03:01]}
5... Be7 {[%clk 0:02:56.4]} 6. e3 {[%clk 0:03:01.2]} 6... c6 {[%clk 0:02:56.2]}
7. Bd3 {[%clk 0:03:01.4]} 7... Nbd7 {[%clk 0:02:46.8]} 8. Nge2 {[%clk
0:02:58.6]} 8... Nh5 {[%clk 0:02:41.7]} 9. Bxe7 {[%clk 0:02:57.6]} 9... Qxe7
{[%clk 0:02:42.6]} 10. g4 {[%clk 0:02:57]} 10... Nhf6 {[%clk 0:02:42]} 11. Ng3
{[%clk 0:02:57.3]} 11... Nb6 {[%clk 0:02:09.9]} 12. g5 {[%clk 0:02:51.9]} 12...
Ng8 {[%clk 0:02:06.4]} 13. h4 {[%clk 0:02:45.9]} 13... h6 {[%clk 0:02:05.2]} 14.
Qf3 {[%clk 0:02:09.3]} 14... hxg5 {[%clk 0:01:56.7]} 15. hxg5 {[%clk 0:02:09.6]}
15... Rxh1+ {[%clk 0:01:55]} 16. Qxh1 {[%clk 0:02:10.5]} 16... Be6 {[%clk
0:01:51]} 17. Qh7 {[%clk 0:02:08.7]} 17... Qf8 {[%clk 0:01:44.1]} 18. Nh5 {[%clk
0:02:01.5]} 18... O-O-O {[%clk 0:01:31.8]} 19. Qxg7 {[%clk 0:01:54.4]} 19... Qb4
{[%clk 0:01:29.9]} 20. O-O-O {[%clk 0:01:53.7]} 20... Ne7 {[%clk 0:01:27.2]} 21.
Nf4 {[%clk 0:01:48.5]} 21... Qd6 {[%clk 0:01:19.8]} 22. Rh1 {[%clk 0:01:30.5]}
22... Rg8 {[%clk 0:01:17.8]} 23. Rh8 {[%clk 0:01:24.9]} 23... Rxh8 {[%clk
0:01:14.8]} 24. Qxh8+ {[%clk 0:01:25.8]} 24... Kc7 {[%clk 0:01:15.7]} 25. Qf6
{[%clk 0:01:04.6]} 25... Nd7 {[%clk 0:01:12.9]} 26. Nxe6+ {[%clk 0:01:04.4]}
26... fxe6 {[%clk 0:01:10.9]} 27. Qf7 {[%clk 0:01:03.7]} 27... e5 {[%clk
0:01:10.2]} 28. Bh7 {[%clk 0:00:47.9]} 28... exd4 {[%clk 0:01:05.4]} 29. exd4
{[%clk 0:00:48.8]} 29... a6 {[%clk 0:00:50]} 30. a3 {[%clk 0:00:36.8]} 30... Kd8
{[%clk 0:00:46]} 31. Kb1 {[%clk 0:00:31.7]} 31... Qh2 {[%clk 0:00:35.7]} 32. g6
{[%clk 0:00:31.9]} 32... Qh6 {[%clk 0:00:34.8]} 33. f4 {[%clk 0:00:29.2]} 33...
Qf8 {[%clk 0:00:32.5]} 34. f5 {[%clk 0:00:22.8]} 34... Qxf7 {[%clk 0:00:28.4]}
35. gxf7 {[%clk 0:00:22.9]} 35... Nf8 {[%clk 0:00:28.4]} 36. Bg6 {[%clk
0:00:20]} 36... Nexg6 {[%clk 0:00:27.7]} 37. fxg6 {[%clk 0:00:20.9]} 37... Nxg6
{[%clk 0:00:28.6]} 38. Na4 {[%clk 0:00:21.4]} 38... Kc7 {[%clk 0:00:23.2]} 39.
Nc5 {[%clk 0:00:21.4]} 39... Nf8 {[%clk 0:00:23.4]} 40. Kc2 {[%clk 0:00:20.3]}
40... a5 {[%clk 0:00:21.1]} 41. Kd3 {[%clk 0:00:20.6]} 41... b6 {[%clk
0:00:20.7]} 42. Na4 {[%clk 0:00:21.3]} 42... Ne6 {[%clk 0:00:18.7]} 43. b4
{[%clk 0:00:19.5]} 43... axb4 {[%clk 0:00:18.3]} 44. axb4 {[%clk 0:00:20.4]}
44... Kb7 {[%clk 0:00:18.1]} 45. Ke3 {[%clk 0:00:19.4]} 45... Ka6 {[%clk
0:00:18]} 46. Nc3 {[%clk 0:00:20.1]} 46... b5 {[%clk 0:00:15.9]} 47. Ne2 {[%clk
0:00:19.4]} 47... Kb7 {[%clk 0:00:15.6]} 48. Nf4 {[%clk 0:00:19.9]} 48... Nf8
{[%clk 0:00:15.4]} 49. Nd3 {[%clk 0:00:19.5]} 49... Kc7 {[%clk 0:00:15.8]} 50.
Kf4 {[%clk 0:00:19.8]} 50... Kd6 {[%clk 0:00:15.9]} 51. Kf5 {[%clk 0:00:20.1]}
51... Ke7 {[%clk 0:00:16.1]} 52. Ne5 {[%clk 0:00:20.7]} 52... Ne6 {[%clk
0:00:15.5]} 53. Nxc6+ {[%clk 0:00:19.1]} 53... Kxf7 {[%clk 0:00:15.7]} 54. Ke5
{[%clk 0:00:19.6]} 54... Nc7 {[%clk 0:00:14.7]} 55. Kd6 {[%clk 0:00:19.9]} 55...
Ne8+ {[%clk 0:00:13.4]} 56. Kxd5 {[%clk 0:00:20.2]} 56... Nf6+ {[%clk
0:00:14.3]} 57. Kc5 {[%clk 0:00:20.3]} 57... Ne4+ {[%clk 0:00:14.1]} 58. Kxb5
{[%clk 0:00:20.2]} 58... Ke6 {[%clk 0:00:14.4]} 59. Kc4 {[%clk 0:00:19]} 59...
Kd6 {[%clk 0:00:14.2]} 60. Na5 {[%clk 0:00:17.1]} 60... Nd2+ {[%clk 0:00:13.7]}
61. Kd3 {[%clk 0:00:17.4]} 61... Nf3 {[%clk 0:00:13.2]} 62. Nc4+ {[%clk
0:00:17.9]} 62... Kc6 {[%clk 0:00:12.9]} 63. Ne5+ {[%clk 0:00:17.5]} 63... Nxe5+
{[%clk 0:00:12.5]} 64. dxe5 {[%clk 0:00:18.4]} 64... Kd5 {[%clk 0:00:12.6]} 65.
Kc3 {[%clk 0:00:18.8]} 65... Kxe5 {[%clk 0:00:12.8]} 66. Kc4 {[%clk 0:00:19.7]}
66... Kd6 {[%clk 0:00:13.7]} 67. Kb5 {[%clk 0:00:20.4]} 67... Kc7 {[%clk
0:00:13.9]} 68. Ka6 {[%clk 0:00:21]} 68... Kb8 {[%clk 0:00:13.7]} 69. Kb6 {[%clk
0:00:21.4]} 69... Kc8 {[%clk 0:00:13.5]} 70. Ka7 {[%clk 0:00:21.1]} 1-0

[Event "*** Titled Tuesday Blitz"]
[Site "Chess.com"]
[Date "2021.03.02"]
[Round "1"]
[White "Euwe1234"]
[Black "ViditYT"]
[Result "0-1"]
[WhiteElo "2469"]
[BlackElo "2978"]
[TimeControl "180+1"]
[EndTime "10:08:52 PST"]
[Termination "ViditYT won by resignation"]

1. e4 {[%clk 0:02:58.2]} 1... c5 {[%clk 0:02:56.5]} 2. Nf3 {[%clk 0:02:56.9]}
2... d6 {[%clk 0:02:56.4]} 3. Bb5+ {[%clk 0:02:50.6]} 3... Nd7 {[%clk 0:02:56]}
4. O-O {[%clk 0:02:47.8]} 4... a6 {[%clk 0:02:55.8]} 5. Bd3 {[%clk 0:02:43.9]}
5... Ngf6 {[%clk 0:02:52.8]} 6. c3 {[%clk 0:02:43.6]} 6... e6 {[%clk 0:02:28.5]}
7. Bc2 {[%clk 0:02:42]} 7... c4 {[%clk 0:02:17.9]} 8. b3 {[%clk 0:02:36.3]} 8...
b5 {[%clk 0:02:09.5]} 9. a4 {[%clk 0:02:28.2]} 9... Bb7 {[%clk 0:02:01.5]} 10.
Qe2 {[%clk 0:02:25.6]} 10... cxb3 {[%clk 0:01:58.7]} 11. Bxb3 {[%clk 0:02:23.4]}
11... Bxe4 {[%clk 0:01:51.1]} 12. axb5 {[%clk 0:02:17.3]} 12... axb5 {[%clk
0:01:52]} 13. Na3 {[%clk 0:02:05.3]} 13... Be7 {[%clk 0:01:42.5]} 14. Bb2 {[%clk
0:02:03.2]} 14... Nc5 {[%clk 0:01:36.5]} 15. Qxb5+ {[%clk 0:01:58]} 15... Nfd7
{[%clk 0:01:35.9]} 16. Qb4 {[%clk 0:00:55.6]} 16... Rb8 {[%clk 0:01:27.8]} 17.
Nb5 {[%clk 0:00:54.3]} 17... Nxb3 {[%clk 0:01:13.1]} 18. Qxb3 {[%clk 0:00:50.1]}
18... Nc5 {[%clk 0:01:05.4]} 19. Qb4 {[%clk 0:00:44.6]} 19... Bd3 {[%clk
0:01:05.5]} 20. c4 {[%clk 0:00:43.2]} 20... Bxf1 {[%clk 0:01:05.1]} 21. Rxf1
{[%clk 0:00:41.2]} 21... O-O {[%clk 0:01:05.2]} 22. Qc3 {[%clk 0:00:38.5]} 22...
Bf6 {[%clk 0:01:04.3]} 23. d4 {[%clk 0:00:38.5]} 23... Na4 {[%clk 0:01:04.5]}
24. Qc2 {[%clk 0:00:38.8]} 24... Nxb2 {[%clk 0:01:05.1]} 25. Qxb2 {[%clk
0:00:39.7]} 25... Qb6 {[%clk 0:00:52.7]} 26. Rb1 {[%clk 0:00:32]} 26... Rfc8
{[%clk 0:00:51.2]} 27. Qe2 {[%clk 0:00:29.3]} 27... Qc6 {[%clk 0:00:49.1]} 28.
Nd2 {[%clk 0:00:26.5]} 28... Bxd4 {[%clk 0:00:48.3]} 29. Nxd4 {[%clk 0:00:24.7]}
29... Rxb1+ {[%clk 0:00:47.8]} 30. Nxb1 {[%clk 0:00:25.6]} 30... Qxc4 {[%clk
0:00:41.9]} 31. Qxc4 {[%clk 0:00:24.7]} 31... Rxc4 {[%clk 0:00:42.8]} 32. Nb3
{[%clk 0:00:20.1]} 32... Rc2 {[%clk 0:00:39.1]} 33. N1d2 {[%clk 0:00:19.7]}
33... d5 {[%clk 0:00:31.5]} 34. f4 {[%clk 0:00:18.3]} 34... Kf8 {[%clk
0:00:31.5]} 35. Kf2 {[%clk 0:00:18.7]} 35... Ke7 {[%clk 0:00:31.8]} 36. Ke3
{[%clk 0:00:19.3]} 36... Kd6 {[%clk 0:00:29.8]} 37. Kd3 {[%clk 0:00:19.6]} 37...
Rc8 {[%clk 0:00:28.3]} 38. Nd4 {[%clk 0:00:19.3]} 38... f6 {[%clk 0:00:28.2]}
39. N2f3 {[%clk 0:00:18.5]} 39... Rb8 {[%clk 0:00:25.3]} 40. g4 {[%clk
0:00:17.8]} 40... Rb2 {[%clk 0:00:19.8]} 41. h4 {[%clk 0:00:17.7]} 41... Ra2
{[%clk 0:00:14.8]} 42. g5 {[%clk 0:00:17.9]} 42... Ra3+ {[%clk 0:00:15.1]} 43.
Ke2 {[%clk 0:00:17.7]} 43... Ra2+ {[%clk 0:00:11.4]} 44. Ke3 {[%clk 0:00:17.7]}
44... Ra4 {[%clk 0:00:11.1]} 45. h5 {[%clk 0:00:17.1]} 45... h6 {[%clk
0:00:09.6]} 46. gxh6 {[%clk 0:00:14.3]} 46... gxh6 {[%clk 0:00:09.9]} 47. Kf2
{[%clk 0:00:13.1]} 47... Ke7 {[%clk 0:00:04.7]} 48. Ke3 {[%clk 0:00:13.1]} 48...
Ra3+ {[%clk 0:00:04.5]} 49. Kf2 {[%clk 0:00:13.2]} 49... Ra2+ {[%clk 0:00:05]}
50. Ke3 {[%clk 0:00:13.5]} 50... Rg2 {[%clk 0:00:04.7]} 51. Ne2 {[%clk
0:00:10.5]} 51... Kd6 {[%clk 0:00:04.5]} 52. Ned4 {[%clk 0:00:10.1]} 52... Rg4
{[%clk 0:00:04.6]} 53. Ne2 {[%clk 0:00:05.3]} 53... Rg8 {[%clk 0:00:04.6]} 54.
Kf2 {[%clk 0:00:04.7]} 54... e5 {[%clk 0:00:04.6]} 55. Ng3 {[%clk 0:00:04.8]}
55... Ke6 {[%clk 0:00:04.7]} 56. fxe5 {[%clk 0:00:04.3]} 56... fxe5 {[%clk
0:00:05.1]} 57. Nh4 {[%clk 0:00:05.2]} 57... Rg4 {[%clk 0:00:04.3]} 58. Ng6
{[%clk 0:00:05]} 58... d4 {[%clk 0:00:04.4]} 59. Kf3 {[%clk 0:00:05.3]} 59...
Rg5 {[%clk 0:00:04.6]} 60. Nf8+ {[%clk 0:00:04.2]} 60... Kd5 {[%clk 0:00:04.3]}
61. Ng6 {[%clk 0:00:04.3]} 61... d3 {[%clk 0:00:03.9]} 62. Ne4 {[%clk
0:00:03.3]} 62... Rf5+ {[%clk 0:00:03.5]} 63. Ke3 {[%clk 0:00:03.4]} 63... Rf1
{[%clk 0:00:02]} 64. Kxd3 {[%clk 0:00:02.3]} 64... Rf3+ {[%clk 0:00:02.2]} 65.
Ke2 {[%clk 0:00:02.3]} 65... Kxe4 {[%clk 0:00:03.1]} 66. Ne7 {[%clk 0:00:02.1]}
66... Re3+ {[%clk 0:00:03.5]} 67. Kf2 {[%clk 0:00:02.1]} 67... Rh3 {[%clk
0:00:04.3]} 68. Ng8 {[%clk 0:00:02.8]} 68... Kf4 {[%clk 0:00:03.7]} 69. Ne7
{[%clk 0:00:03.3]} 69... Rxh5 {[%clk 0:00:04]} 70. Ng6+ {[%clk 0:00:04.2]} 70...
Kf5 {[%clk 0:00:04.3]} 71. Ne7+ {[%clk 0:00:05.1]} 71... Ke4 {[%clk 0:00:04.8]}
72. Nd5 {[%clk 0:00:06]} 72... Kxd5 {[%clk 0:00:04.5]} 0-1

[Event "*** Titled Tuesday Blitz"]
[Site "Chess.com"]
[Date "2021.03.02"]
[Round "1"]
[White "DenLaz"]
[Black "Lion-Al-Messi"]
[Result "1-0"]
[WhiteElo "2835"]
[BlackElo "2424"]
[TimeControl "180+1"]
[EndTime "10:09:03 PST"]
[Termination "DenLaz won by resignation"]

1. d4 {[%clk 0:03:00.3]} 1... d5 {[%clk 0:03:00]} 2. c4 {[%clk 0:03:00.4]} 2...
c6 {[%clk 0:03:00.6]} 3. Nf3 {[%clk 0:02:59.9]} 3... Nf6 {[%clk 0:03:00.9]} 4.
e3 {[%clk 0:03:00.2]} 4... e6 {[%clk 0:03:00.9]} 5. b3 {[%clk 0:02:59.3]} 5...
Nbd7 {[%clk 0:03:00.9]} 6. Bd3 {[%clk 0:02:59]} 6... Bb4+ {[%clk 0:03:00.3]} 7.
Nbd2 {[%clk 0:02:58]} 7... e5 {[%clk 0:02:54.1]} 8. dxe5 {[%clk 0:02:45.5]} 8...
Bc3 {[%clk 0:02:54.1]} 9. Ba3 {[%clk 0:02:42.6]} 9... Nxe5 {[%clk 0:02:35.8]}
10. Nxe5 {[%clk 0:02:21.9]} 10... Bxe5 {[%clk 0:02:36.7]} 11. Rb1 {[%clk
0:02:01.9]} 11... Qa5 {[%clk 0:02:35.3]} 12. Qc1 {[%clk 0:01:59.1]} 12... Bc3
{[%clk 0:02:29.4]} 13. Bb2 {[%clk 0:01:56.6]} 13... Bxb2 {[%clk 0:02:25.8]} 14.
Qxb2 {[%clk 0:01:55.7]} 14... O-O {[%clk 0:02:22.5]} 15. O-O {[%clk 0:01:53.8]}
15... Bg4 {[%clk 0:02:22.5]} 16. h3 {[%clk 0:01:46.8]} 16... Bh5 {[%clk
0:02:22.3]} 17. cxd5 {[%clk 0:01:41.8]} 17... Nxd5 {[%clk 0:02:22.2]} 18. b4
{[%clk 0:01:33.9]} 18... Qc7 {[%clk 0:02:21]} 19. Ne4 {[%clk 0:01:27.1]} 19...
Bg6 {[%clk 0:02:19.9]} 20. Rfc1 {[%clk 0:01:23.8]} 20... Rad8 {[%clk 0:02:18.8]}
21. Bc2 {[%clk 0:01:17.8]} 21... Rfe8 {[%clk 0:02:10.9]} 22. Nc5 {[%clk
0:01:16.4]} 22... Qe7 {[%clk 0:02:01]} 23. Bxg6 {[%clk 0:01:14.2]} 23... hxg6
{[%clk 0:02:01.9]} 24. a3 {[%clk 0:01:10]} 24... Rd6 {[%clk 0:01:32.8]} 25. Nb3
{[%clk 0:00:58.2]} 25... Rf6 {[%clk 0:01:30.2]} 26. Re1 {[%clk 0:00:54.4]} 26...
Nb6 {[%clk 0:01:07.9]} 27. Na5 {[%clk 0:00:52.7]} 27... Rd8 {[%clk 0:01:01.9]}
28. Rbd1 {[%clk 0:00:46.5]} 28... Rfd6 {[%clk 0:01:01.9]} 29. Rxd6 {[%clk
0:00:45.7]} 29... Rxd6 {[%clk 0:01:02.1]} 30. Qc3 {[%clk 0:00:44.2]} 30... Nd5
{[%clk 0:00:56.1]} 31. Qc4 {[%clk 0:00:39.3]} 31... Qc7 {[%clk 0:00:45.7]} 32.
g3 {[%clk 0:00:34.9]} 32... Nf6 {[%clk 0:00:44.7]} 33. Qf4 {[%clk 0:00:32.1]}
33... Qd7 {[%clk 0:00:42.1]} 34. Kg2 {[%clk 0:00:32.1]} 34... b6 {[%clk
0:00:36.3]} 35. Nc4 {[%clk 0:00:29.9]} 35... Re6 {[%clk 0:00:36.7]} 36. Qf3
{[%clk 0:00:28.2]} 36... Qd3 {[%clk 0:00:29.8]} 37. Qe2 {[%clk 0:00:24.2]} 37...
Qc3 {[%clk 0:00:28.3]} 38. Rd1 {[%clk 0:00:22.4]} 38... Nd5 {[%clk 0:00:26.6]}
39. Qd3 {[%clk 0:00:20.4]} 39... Qf6 {[%clk 0:00:23.2]} 40. e4 {[%clk
0:00:18.2]} 40... Ne7 {[%clk 0:00:21.3]} 41. f4 {[%clk 0:00:17.5]} 41... c5
{[%clk 0:00:15.8]} 42. e5 {[%clk 0:00:17.3]} 42... Qf5 {[%clk 0:00:15.7]} 43.
Qxf5 {[%clk 0:00:16.6]} 43... Nxf5 {[%clk 0:00:16.6]} 44. bxc5 {[%clk
0:00:16.8]} 44... bxc5 {[%clk 0:00:16.2]} 45. Rd8+ {[%clk 0:00:15.1]} 45... Kh7
{[%clk 0:00:16.6]} 46. Rd7 {[%clk 0:00:15.6]} 46... Ra6 {[%clk 0:00:16.4]} 47.
Rxf7 {[%clk 0:00:10.8]} 47... Ra4 {[%clk 0:00:16.7]} 48. Nd6 {[%clk 0:00:09.5]}
48... Nxd6 {[%clk 0:00:11.6]} 49. exd6 {[%clk 0:00:10.4]} 49... Rxa3 {[%clk
0:00:12]} 50. Kf2 {[%clk 0:00:10.2]} 50... Rd3 {[%clk 0:00:12.1]} 51. d7 {[%clk
0:00:09.9]} 51... a5 {[%clk 0:00:10.2]} 52. Ke2 {[%clk 0:00:09.6]} 52... Rd4
{[%clk 0:00:09.9]} 53. Rf8 {[%clk 0:00:06.3]} 53... Rxd7 {[%clk 0:00:09.3]} 54.
Ra8 {[%clk 0:00:05.8]} 54... Re7+ {[%clk 0:00:08.6]} 55. Kf3 {[%clk 0:00:05.7]}
55... Rb7 {[%clk 0:00:08]} 56. Rxa5 {[%clk 0:00:05.9]} 56... Rb3+ {[%clk
0:00:08]} 57. Kg4 {[%clk 0:00:06.5]} 57... c4 {[%clk 0:00:08.1]} 58. Rc5 {[%clk
0:00:06.7]} 58... Rc3 {[%clk 0:00:07.3]} 59. h4 {[%clk 0:00:06.4]} 59... Kg8
{[%clk 0:00:07.7]} 60. Rc6 {[%clk 0:00:05.2]} 60... Kf7 {[%clk 0:00:07.9]} 61.
Rc8 {[%clk 0:00:05]} 61... Ke6 {[%clk 0:00:07.8]} 62. Rc7 {[%clk 0:00:05.1]}
62... Kf6 {[%clk 0:00:07.2]} 63. Rc6+ {[%clk 0:00:05.1]} 63... Kf7 {[%clk
0:00:07.6]} 64. Rc5 {[%clk 0:00:05.6]} 64... Kf6 {[%clk 0:00:07.7]} 65. Rc8
{[%clk 0:00:05.7]} 65... Kf7 {[%clk 0:00:07.9]} 66. Rc6 {[%clk 0:00:06.3]} 66...
Rc1 {[%clk 0:00:07.2]} 67. Kg5 {[%clk 0:00:06]} 67... Rg1 {[%clk 0:00:07.4]} 68.
g4 {[%clk 0:00:06]} 68... Rc1 {[%clk 0:00:06.4]} 69. Rc7+ {[%clk 0:00:06.1]}
69... Ke6 {[%clk 0:00:05.9]} 70. Kxg6 {[%clk 0:00:06.2]} 70... Kd5 {[%clk
0:00:04.8]} 71. f5 {[%clk 0:00:05.7]} 71... Rg1 {[%clk 0:00:04.7]} 72. g5 {[%clk
0:00:06]} 72... Kd4 {[%clk 0:00:05]} 73. Kxg7 {[%clk 0:00:05.7]} 73... c3 {[%clk
0:00:05.2]} 74. f6 {[%clk 0:00:06.2]} 74... Rf1 {[%clk 0:00:05.2]} 75. f7 {[%clk
0:00:06.4]} 75... Rf5 {[%clk 0:00:05.6]} 76. f8=Q {[%clk 0:00:06]} 1-0

[Event "*** Titled Tuesday Blitz"]
[Site "Chess.com"]
[Date "2021.03.02"]
[Round "1"]
[White "Vuk2000"]
[Black "LogoCzar"]
[Result "1-0"]
[WhiteElo "2670"]
[BlackElo "2351"]
[TimeControl "180+1"]
[EndTime "10:09:03 PST"]
[Termination "Vuk2000 won by checkmate"]

1. d4 {[%clk 0:02:47]} 1... d5 {[%clk 0:02:58.5]} 2. Bf4 {[%clk 0:02:44.2]} 2...
c5 {[%clk 0:02:58.2]} 3. e3 {[%clk 0:02:35.4]} 3... Nc6 {[%clk 0:02:57.5]} 4. c3
{[%clk 0:02:35.2]} 4... Nf6 {[%clk 0:02:57]} 5. Nd2 {[%clk 0:02:35.1]} 5... Bf5
{[%clk 0:02:56.6]} 6. Ngf3 {[%clk 0:02:31.1]} 6... Qb6 {[%clk 0:02:54.5]} 7. Qb3
{[%clk 0:02:27.1]} 7... c4 {[%clk 0:02:52.7]} 8. Qxb6 {[%clk 0:02:26.8]} 8...
axb6 {[%clk 0:02:53.6]} 9. a3 {[%clk 0:02:25.6]} 9... b5 {[%clk 0:02:53.6]} 10.
Rc1 {[%clk 0:02:24.8]} 10... h6 {[%clk 0:02:52.7]} 11. h3 {[%clk 0:02:18.9]}
11... e6 {[%clk 0:02:52.5]} 12. g4 {[%clk 0:02:17.2]} 12... Bh7 {[%clk
0:02:51.4]} 13. Ne5 {[%clk 0:02:17.2]} 13... Nxe5 {[%clk 0:02:50.5]} 14. Bxe5
{[%clk 0:02:17.5]} 14... Nd7 {[%clk 0:02:49.9]} 15. Bc7 {[%clk 0:02:04]} 15...
Rc8 {[%clk 0:02:38.8]} 16. Ba5 {[%clk 0:02:02.2]} 16... Ra8 {[%clk 0:02:30.7]}
17. Bc7 {[%clk 0:01:56.9]} 17... Rc8 {[%clk 0:02:30.1]} 18. Bg3 {[%clk
0:01:11.3]} 18... Nb6 {[%clk 0:02:29.5]} 19. Ra1 {[%clk 0:01:11.7]} 19... Na4
{[%clk 0:02:27.4]} 20. Ra2 {[%clk 0:01:11.7]} 20... Kd7 {[%clk 0:01:57.4]} 21.
Be2 {[%clk 0:01:09.3]} 21... Be7 {[%clk 0:01:45.1]} 22. O-O {[%clk 0:01:08.6]}
22... h5 {[%clk 0:01:36.4]} 23. gxh5 {[%clk 0:01:06.7]} 23... Bf5 {[%clk
0:01:32.6]} 24. Bg4 {[%clk 0:01:00.1]} 24... Bd3 {[%clk 0:01:23.5]} 25. Re1
{[%clk 0:00:51.7]} 25... f5 {[%clk 0:01:19.9]} 26. Bd1 {[%clk 0:00:44.4]} 26...
Rcg8 {[%clk 0:01:14]} 27. Nf3 {[%clk 0:00:43.5]} 27... Bf6 {[%clk 0:01:03.8]}
28. Kh2 {[%clk 0:00:41.1]} 28... Ke7 {[%clk 0:00:54.7]} 29. Ne5 {[%clk
0:00:29.6]} 29... Bxe5 {[%clk 0:00:54.5]} 30. Bxe5 {[%clk 0:00:29.4]} 30... Rh6
{[%clk 0:00:52.2]} 31. Rg1 {[%clk 0:00:28.3]} 31... Bb1 {[%clk 0:00:39.6]} 32.
Ra1 {[%clk 0:00:27.6]} 32... Bd3 {[%clk 0:00:38.3]} 33. Bxg7 {[%clk 0:00:18.3]}
33... Rh7 {[%clk 0:00:36]} 34. Bxa4 {[%clk 0:00:14.4]} 34... bxa4 {[%clk
0:00:34.6]} 35. h6 {[%clk 0:00:14.2]} 35... b5 {[%clk 0:00:31]} 36. Kg3 {[%clk
0:00:12.3]} 36... Rxh6 {[%clk 0:00:29.4]} 37. Kh2 {[%clk 0:00:08.9]} 37... Rh7
{[%clk 0:00:28.3]} 38. Be5 {[%clk 0:00:08.3]} 38... Rxg1 {[%clk 0:00:26.9]} 39.
Rxg1 {[%clk 0:00:09.2]} 39... Kf7 {[%clk 0:00:24.8]} 40. Rg5 {[%clk 0:00:09.1]}
40... Be2 {[%clk 0:00:22.3]} 41. Kg2 {[%clk 0:00:08.1]} 41... Bd3 {[%clk
0:00:21.4]} 42. f3 {[%clk 0:00:07.7]} 42... Bc2 {[%clk 0:00:20.7]} 43. Bf4
{[%clk 0:00:07.5]} 43... Bd3 {[%clk 0:00:19.8]} 44. Be5 {[%clk 0:00:07.4]} 44...
Bc2 {[%clk 0:00:19.7]} 45. Kg3 {[%clk 0:00:07.5]} 45... Bd3 {[%clk 0:00:19.2]}
46. h4 {[%clk 0:00:07.9]} 46... Bc2 {[%clk 0:00:16.4]} 47. h5 {[%clk 0:00:07.9]}
47... Bd3 {[%clk 0:00:14.9]} 48. Kh4 {[%clk 0:00:08.1]} 48... Be2 {[%clk
0:00:14.6]} 49. Rg3 {[%clk 0:00:08.3]} 49... Bd1 {[%clk 0:00:11.4]} 50. Kg5
{[%clk 0:00:08.1]} 50... Be2 {[%clk 0:00:11.2]} 51. h6 {[%clk 0:00:08.2]} 51...
Bd1 {[%clk 0:00:10.9]} 52. Bg7 {[%clk 0:00:07.6]} 52... Be2 {[%clk 0:00:09.9]}
53. Kf4 {[%clk 0:00:07.8]} 53... Bd1 {[%clk 0:00:09.3]} 54. Ke5 {[%clk
0:00:08.1]} 54... Ke7 {[%clk 0:00:09.5]} 55. e4 {[%clk 0:00:07.3]} 55... fxe4
{[%clk 0:00:08.3]} 56. fxe4 {[%clk 0:00:07.2]} 56... dxe4 {[%clk 0:00:08.5]} 57.
Kxe4 {[%clk 0:00:04.5]} 57... Bc2+ {[%clk 0:00:08.7]} 58. Ke5 {[%clk 0:00:04.5]}
58... Bd3 {[%clk 0:00:07.2]} 59. Rf3 {[%clk 0:00:04.4]} 59... Bc2 {[%clk
0:00:05.5]} 60. Rf6 {[%clk 0:00:04.7]} 60... Bf5 {[%clk 0:00:05.2]} 61. Rxf5
{[%clk 0:00:05.1]} 61... exf5 {[%clk 0:00:05.1]} 62. Kxf5 {[%clk 0:00:06]} 62...
Kf7 {[%clk 0:00:04.8]} 63. d5 {[%clk 0:00:06.4]} 63... Ke7 {[%clk 0:00:04.5]}
64. Kg6 {[%clk 0:00:06.5]} 64... Rxg7+ {[%clk 0:00:02.2]} 65. Kxg7 {[%clk
0:00:06.3]} 65... b4 {[%clk 0:00:03.1]} 66. h7 {[%clk 0:00:06.9]} 66... bxa3
{[%clk 0:00:03.1]} 67. bxa3 {[%clk 0:00:06.9]} 67... Kd6 {[%clk 0:00:04]} 68.
h8=Q {[%clk 0:00:07.3]} 68... Kxd5 {[%clk 0:00:04.9]} 69. Qh4 {[%clk 0:00:07.9]}
69... Kc5 {[%clk 0:00:03.8]} 70. Qd4+ {[%clk 0:00:08.8]} 70... Kb5 {[%clk
0:00:04.7]} 71. Kf6 {[%clk 0:00:08.3]} 71... Ka5 {[%clk 0:00:05.6]} 72. Qxc4
{[%clk 0:00:08.2]} 72... Kb6 {[%clk 0:00:05.9]} 73. Ke7 {[%clk 0:00:08.5]} 73...
Ka5 {[%clk 0:00:06.8]} 74. Qb4+ {[%clk 0:00:08.5]} 74... Ka6 {[%clk 0:00:06.9]}
75. Kd7 {[%clk 0:00:08.9]} 75... Ka7 {[%clk 0:00:07.4]} 76. Kc7 {[%clk
0:00:09.3]} 76... Ka6 {[%clk 0:00:08.3]} 77. Qxa4# {[%clk 0:00:09.8]} 1-0